bitfinex/quotes_BTCUSD_20220101
["timestamp","ask_amount","ask_price","bid_price","bid_amount"]
[1641066177496,0.37525524,47322.0,47321.0,1.41150014]
[1641066177696,0.37525524,47322.0,47321.0,1.78276392]
[1641066177895,0.6975947,47325.0,47321.0,2.21966092]
[1641066178096,0.6975947,47329.0,47325.0,0.05357]
[1641066178294,0.2751837,47329.0,47328.0,1.843036]
[1641066178495,0.2751837,47329.0,47328.0,2.574106]
[1641066178695,0.27547582,47329.0,47328.0,2.88102928]
[1641066178895,0.71711082,47331.0,47330.0,0.96457905]
[1641066179161,1.340378,47338.0,47330.0,4.34415959]
[1641066179162,0.927478,47338.0,47330.0,4.34415959]
[1641066179368,0.5075459,47338.0,47336.0,0.05357]
[1641066179563,0.82911288,47346.0,47343.0,0.0012074]
[1641066179762,0.82911288,47346.0,47345.0,1.55833533]
[1641066179962,0.40687888,47346.0,47345.0,2.14031852]
[1641066180164,0.40687888,47346.0,47345.0,2.08160044]
[1641066180565,0.001,47359.0,47350.0,0.05357]
[1641066180764,0.001,47359.0,47356.0,0.05357]
[1641066180965,0.001,47359.0,47358.0,0.13465879]
[1641066181162,0.02371,47360.0,47358.0,0.18185879]
[1641066181363,0.75054774,47359.0,47358.0,0.10077]
[1641066181565,0.75054774,47359.0,47358.0,0.18185879]
[1641066185598,0.85054774,47359.0,47358.0,0.13465879]
[1641066185798,0.85054774,47359.0,47353.0,0.01942229]
[1641066185799,1.31179879,47358.0,47353.0,0.01942229]
[1641066185999,0.10637398,47356.0,47353.0,0.01942229]
[1641066186198,0.05357,47354.0,47353.0,0.01942229]
[1641066186400,0.05357,47354.0,47353.0,0.0403284]
[1641066186401,0.440405,47354.0,47353.0,0.0403284]
[1641066186657,0.59086145,47354.0,47353.0,0.02090611]
[1641066187058,0.59086145,47354.0,47351.0,0.65170424]
[1641066187264,1.17357,47352.0,47351.0,0.65170424]
[1641066187457,1.563205,47352.0,47351.0,0.65170424]
[1641066187659,1.66362493,47352.0,47351.0,0.65170424]
[1641066187859,1.66362493,47352.0,47351.0,0.6729958]
[1641066188060,1.66362493,47352.0,47351.0,0.65486156]
[1641066188462,1.51362493,47352.0,47351.0,0.65486156]
[1641066188763,1.17398993,47352.0,47351.0,0.67403311]
[1641066188962,1.17398993,47352.0,47351.0,0.65274155]
[1641066189862,1.17398993,47352.0,47351.0,0.67103898]
[1641066190061,1.17398993,47352.0,47351.0,0.65186743]
[1641066190497,1.38398993,47352.0,47351.0,0.65186743]
[1641066190899,1.38398993,47352.0,47351.0,0.67110644]
[1641066191099,1.38398993,47352.0,47351.0,0.65280901]
[1641066191800,1.17398993,47352.0,47351.0,0.67410498]
[1641066192100,1.51362493,47352.0,47351.0,0.65486597]
[1641066192901,1.51362493,47352.0,47351.0,0.67486284]
[1641066193102,1.51362493,47352.0,47351.0,0.65356687]
[1641066193302,1.61362493,47352.0,47351.0,0.65356687]
[1641066194042,1.61362493,47352.0,47351.0,0.6548667]
[1641066194943,1.61362493,47352.0,47351.0,0.67495482]
[1641066195146,1.61362493,47352.0,47351.0,0.65365812]
[1641066195946,1.61362493,47352.0,47351.0,0.67292176]
[1641066196147,1.61362493,47352.0,47351.0,0.65283364]
[1641066196946,1.61362493,47352.0,47351.0,0.67384237]
[1641066197804,1.61362493,47352.0,47351.0,0.63357]
[1641066197997,1.61362493,47352.0,47351.0,0.65460698]
[1641066199097,1.61362493,47352.0,47351.0,0.65373639]
[1641066199898,1.61362493,47352.0,47351.0,0.67562918]
[1641066200101,0.05398993,47352.0,47351.0,1.07195775]
[1641066200304,0.05398993,47352.0,47351.0,1.12765664]
[1641066200503,0.19398993,47352.0,47351.0,1.56005565]
[1641066200706,0.13465879,47358.0,47351.0,1.75347565]
[1641066200907,0.13465879,47358.0,47356.0,0.246198]
[1641066201101,0.13465879,47358.0,47356.0,1.92591643]
[1641066201955,0.13465879,47358.0,47356.0,1.94703072]
[1641066202656,0.13465879,47358.0,47357.0,0.87164714]
[1641066202858,0.13465879,47358.0,47357.0,1.55233714]
[1641066203057,0.13476834,47358.0,47357.0,1.55233714]
[1641066204159,0.13476834,47358.0,47357.0,1.57197278]
[1641066204760,0.13476834,47358.0,47357.0,1.55233714]
[1641066204957,0.13476834,47358.0,47357.0,1.57085266]
[1641066206614,0.13476834,47358.0,47357.0,1.59196912]
[1641066206815,0.13476834,47358.0,47357.0,1.5734536]
[1641066207015,0.13476834,47358.0,47357.0,1.5933682]
[1641066207214,0.13476834,47358.0,47357.0,1.57345392]
[1641066208017,0.13476834,47358.0,47357.0,1.59244323]
[1641066208215,0.13476834,47358.0,47357.0,1.57252863]
[1641066208917,0.13476834,47358.0,47357.0,1.5939258]
[1641066209152,0.13476834,47358.0,47357.0,1.57493649]
[1641066209954,0.13476834,47358.0,47357.0,1.59315308]
[1641066210156,0.08476834,47358.0,47357.0,1.59315308]
[1641066210356,0.08476834,47358.0,47357.0,1.57175591]
[1641066211156,0.08476834,47358.0,47357.0,1.59352069]
[1641066211357,0.08476834,47358.0,47357.0,1.5753041]
[1641066211557,0.22476834,47358.0,47357.0,1.5753041]
[1641066212658,0.22476834,47358.0,47357.0,1.59562967]
[1641066212918,0.08476834,47358.0,47357.0,1.59562967]
[1641066213318,0.08476834,47358.0,47357.0,1.61561943]
[1641066213519,0.08476834,47358.0,47357.0,1.57352908]
[1641066214118,0.08476834,47358.0,47357.0,1.57413906]
[1641066215622,0.08476834,47358.0,47357.0,1.59328897]
[1641066216420,0.08476834,47358.0,47357.0,1.55353932]
[1641066216646,0.08476834,47358.0,47357.0,1.57454266]
[1641066216950,0.08485623,47358.0,47357.0,1.59563114]
[1641066217148,0.08485623,47358.0,47357.0,1.5746278]
[1641066218151,0.08485623,47358.0,47357.0,1.59267701]
[1641066218349,0.08485623,47358.0,47357.0,1.57158853]
[1641066219149,0.08485623,47358.0,47357.0,1.59070605]
[1641066219749,0.08485623,47358.0,47357.0,1.54350605]
[1641066219948,0.08485623,47358.0,47357.0,1.50633932]
[1641066220150,0.08485623,47358.0,47357.0,1.52507345]
[1641066221003,0.08485623,47358.0,47357.0,1.54530657]
[1641066221204,0.08485623,47358.0,47357.0,1.52657244]
[1641066221405,0.08485623,47358.0,47357.0,1.57377244]
[1641066221607,0.05376744,47358.0,47357.0,2.89085198]
[1641066221805,0.0092418,47362.0,47361.0,0.05357]
[1641066222009,0.0092418,47362.0,47361.0,1.15827841]
[1641066222207,7.303e-05,47362.0,47361.0,1.15827841]
[1641066222406,0.21,47366.0,47365.0,0.05357]
[1641066222609,0.21,47366.0,47365.0,1.16765942]
[1641066222809,0.21007303,47366.0,47365.0,1.16765942]
[1641066223603,0.21007303,47366.0,47365.0,1.53630696]
[1641066224048,0.21007303,47366.0,47365.0,1.55640127]
[1641066225152,0.21007303,47366.0,47365.0,1.57555445]
[1641066225355,0.21007303,47366.0,47365.0,1.55546014]
[1641066226254,0.21007303,47366.0,47365.0,1.55667247]
[1641066227054,0.21007303,47366.0,47365.0,1.57772394]
[1641066227253,0.21007303,47366.0,47365.0,1.55735843]
[1641066228098,0.21007303,47366.0,47365.0,1.57714502]
[1641066228301,0.21007303,47366.0,47365.0,1.55609355]
[1641066229098,0.21007303,47366.0,47365.0,1.57632239]
[1641066229299,0.21007303,47366.0,47365.0,1.5565358]
[1641066230102,0.21007303,47366.0,47365.0,1.57521992]
[1641066230300,0.21007303,47366.0,47365.0,1.55499108]
[1641066231202,0.21007303,47366.0,47365.0,1.57585526]
[1641066231866,0.21007303,47366.0,47365.0,1.53630696]
[1641066232067,0.21007303,47366.0,47365.0,1.55472855]
[1641066233168,0.21007303,47366.0,47365.0,1.57405092]
[1641066233368,0.21007303,47366.0,47365.0,1.55562933]
[1641066233868,0.21007303,47366.0,47365.0,1.18698179]
[1641066234073,0.21007303,47366.0,47365.0,0.72464908]
[1641066234270,1.83949709,47366.0,47365.0,0.10382671]
[1641066234472,0.05357,47364.0,47355.0,0.20022]
[1641066234672,0.05357,47362.0,47345.0,0.00764189]
[1641066234873,0.05357,47362.0,47356.0,0.00010955]
[1641066235076,0.05357,47359.0,47356.0,0.00010955]
[1641066235380,0.05357,47357.0,47349.0,0.00023735]
[1641066235564,0.05357,47352.0,47349.0,0.00023735]
[1641066236369,1.17357,47350.0,47349.0,0.00023735]
[1641066236764,1.17357,47350.0,47349.0,0.13985]
[1641066236965,0.05357,47350.0,47349.0,0.13985]
[1641066237167,0.05357,47350.0,47349.0,0.14008735]
[1641066237364,0.05357,47350.0,47349.0,0.47972235]
[1641066237565,0.43357,47350.0,47349.0,0.47972235]
[1641066237769,0.05357,47350.0,47349.0,0.52972235]
[1641066237966,0.05357,47350.0,47349.0,0.57972235]
[1641066238265,0.05357,47350.0,47349.0,0.59794164]
[1641066238871,0.05357,47350.0,47349.0,0.84051022]
[1641066239266,0.05357,47350.0,47349.0,0.8590935]
[1641066239468,0.05357,47350.0,47349.0,0.84087421]
[1641066240169,0.05357,47350.0,47349.0,0.56719503]
[1641066240367,0.05357,47350.0,47349.0,0.54861175]
[1641066240568,0.55357,47350.0,47349.0,0.54861175]
[1641066240769,0.55357,47350.0,47349.0,0.20897675]
[1641066241168,0.55357,47350.0,47349.0,0.22916142]
[1641066241370,0.55357,47350.0,47349.0,0.21027202]
[1641066241569,1.16357,47350.0,47349.0,0.16027202]
[1641066241768,0.42840642,47350.0,47349.0,0.21384202]
[1641066242367,0.052795,47351.0,47349.0,0.19365735]
[1641066242567,0.10558764,47351.0,47350.0,0.19342]
[1641066242814,0.052795,47351.0,47350.0,0.19363909]
[1641066243010,0.00120803,47361.0,47350.0,0.19363909]
[1641066243207,0.052786,47354.0,47350.0,0.05378909]
[1641066243410,0.105573,47357.0,47353.0,0.14336394]
[1641066243612,1.0586,47362.0,47356.0,0.14336394]
[1641066243811,1.0586,47362.0,47351.0,0.31239234]
[1641066243812,0.1,47362.0,47358.0,0.05357]
[1641066244212,0.105565,47360.0,47358.0,0.05357]
[1641066244813,0.05278334,47359.0,47358.0,0.05357]
[1641066245212,0.05278334,47359.0,47358.0,0.05364303]
[1641066245415,0.05357,47352.0,47350.0,0.02178443]
[1641066245614,1.62550277,47351.0,47347.0,0.95601562]
[1641066245814,1.27357,47348.0,47340.0,1.0803996]
[1641066246014,0.05357,47346.0,47343.0,0.96031767]
[1641066246213,1.17357,47344.0,47343.0,1.767e-05]
[1641066246413,1.560405,47344.0,47341.0,0.21140577]
[1641066246668,1.560405,47344.0,47325.0,0.00022]
[1641066246669,0.05357,47342.0,47325.0,0.00022]
[1641066246868,0.05357,47333.0,47325.0,0.00022]
[1641066247164,0.05357,47333.0,47330.0,0.13985]
[1641066247362,0.05357,47333.0,47332.0,0.13985]
[1641066247564,1.17357,47333.0,47332.0,0.13985]
[1641066247765,1.17357,47333.0,47332.0,0.1403247]
[1641066247965,1.573531,47333.0,47332.0,0.1403247]
[1641066248166,1.59534586,47333.0,47332.0,0.1403247]
[1641066248567,1.70098389,47333.0,47332.0,0.1403247]
[1641066249567,0.05357,47331.0,47325.0,0.00946245]
[1641066249768,1.26032,47332.0,47317.0,0.00794236]
[1641066249769,0.00123438,47326.0,47319.0,0.053041]
[1641066249968,0.13479137,47322.0,47319.0,0.00022]
[1641066250172,0.440405,47321.0,47319.0,0.00033]
[1641066250415,0.10077,47321.0,47319.0,0.00033]
[1641066250614,0.10077,47321.0,47320.0,0.1402891]
[1641066251416,1.06077,47321.0,47320.0,0.1402891]
[1641066252214,1.03309849,47321.0,47320.0,0.1402891]
[1641066253115,1.03309849,47321.0,47320.0,0.0004391]
[1641066253414,1.19309849,47321.0,47320.0,0.0004391]
[1641066253814,1.21276488,47321.0,47320.0,0.0004391]
[1641066254055,1.19323639,47321.0,47320.0,0.1402891]
[1641066254255,1.05170093,47321.0,47320.0,0.1402891]
[1641066254459,0.01846454,47321.0,47320.0,0.1402891]
[1641066255457,0.61846454,47321.0,47320.0,0.1402891]
[1641066255659,0.6,47321.0,47320.0,0.1402891]
[1641066256259,0.62055801,47321.0,47320.0,0.1402891]
[1641066257261,0.64126999,47321.0,47320.0,0.1402891]
[1641066257461,0.62071198,47321.0,47320.0,0.1402891]
[1641066257911,0.62071198,47321.0,47320.0,0.0004391]
[1641066258111,0.96034698,47321.0,47320.0,0.0004391]
[1641066258314,1.16055286,47321.0,47320.0,0.0004391]
[1641066258513,1.47947588,47321.0,47320.0,0.0004391]
[1641066259112,0.95947588,47321.0,47320.0,0.1402891]
[1641066259312,0.6412067,47321.0,47320.0,0.1402891]
[1641066259514,0.62136582,47321.0,47320.0,0.1402891]
[1641066260114,0.02136582,47321.0,47320.0,0.1402891]
[1641066260315,0.58136582,47321.0,47320.0,0.1402891]
[1641066260914,0.60049924,47321.0,47320.0,0.1402891]
[1641066261115,0.57913342,47321.0,47320.0,0.1402891]
[1641066261418,0.59920412,47321.0,47320.0,0.1402891]
[1641066261657,0.5800707,47321.0,47320.0,0.1402891]
[1641066262462,0.59866688,47321.0,47320.0,0.1402891]
[1641066262659,0.57859618,47321.0,47320.0,0.1402891]
[1641066263462,0.59882983,47321.0,47320.0,0.1402891]
[1641066264062,0.46,47321.0,47320.0,0.1402891]
[1641066264560,0.47912727,47321.0,47320.0,0.1402891]
[1641066265163,0.01912727,47321.0,47320.0,0.1402891]
[1641066265426,0.03879769,47321.0,47320.0,0.49784807]
[1641066265624,0.01967042,47321.0,47320.0,0.4799241]
[1641066265827,0.01967042,47321.0,47320.0,0.78520658]
[1641066266024,0.01967042,47321.0,47320.0,0.53237086]
[1641066266225,0.01967042,47321.0,47320.0,1.47259604]
[1641066266625,0.00924266,47326.0,47323.0,0.35547142]
[1641066266825,0.00924266,47326.0,47325.0,0.80067543]
[1641066267025,0.00924266,47326.0,47325.0,1.43458543]
[1641066267226,0.00924266,47326.0,47325.0,1.43471324]
[1641066267429,0.00924266,47326.0,47325.0,1.48471324]
[1641066267623,0.00924266,47326.0,47325.0,1.87003788]
[1641066268224,0.16136719,47332.0,47325.0,1.87003788]
[1641066268425,0.16136719,47332.0,47330.0,0.13985]
[1641066268626,0.14032,47332.0,47331.0,0.13985]
[1641066269260,0.93032,47332.0,47331.0,0.13985]
[1641066270158,0.14032,47332.0,47331.0,0.13985]
[1641066270360,0.16018164,47332.0,47331.0,0.13985]
[1641066271158,0.62018164,47332.0,47331.0,0.13985]
[1641066271557,0.60032,47332.0,47331.0,0.13985]
[1641066271960,0.60032,47332.0,47331.0,0.13862659]
[1641066272462,0.62012736,47332.0,47331.0,0.13862659]
[1641066272915,0.16012736,47332.0,47331.0,0.13862659]
[1641066273512,0.17850024,47332.0,47331.0,0.13862659]
[1641066273713,0.15869288,47332.0,47331.0,0.13862659]
[1641066274712,0.14032,47332.0,47331.0,0.13862659]
[1641066276113,0.52032,47332.0,47331.0,0.13862659]
[1641066277157,0.87032,47332.0,47331.0,0.13862659]
[1641066277557,0.52032,47332.0,47331.0,0.13862659]
[1641066278160,0.5388816,47332.0,47331.0,0.13862659]
[1641066278560,0.55747746,47332.0,47331.0,0.13862659]
[1641066278762,0.15891586,47332.0,47331.0,0.13862659]
[1641066279762,0.14032,47332.0,47331.0,0.13862659]
[1641066282110,0.71032,47332.0,47331.0,0.13862659]
[1641066283710,0.72842703,47332.0,47331.0,0.13862659]
[1641066284160,0.72842703,47332.0,47328.0,0.05282]
[1641066284161,1.04842703,47332.0,47328.0,0.05282]
[1641066284356,0.72842703,47332.0,47328.0,0.05282]
[1641066284558,0.052821,47331.0,47326.0,0.05293155]
[1641066284957,0.052821,47331.0,47327.0,9.129e-05]
[1641066285560,0.052821,47331.0,47326.0,0.00010955]
[1641066285758,0.052821,47331.0,47328.0,0.05282]
[1641066286060,0.052821,47331.0,47330.0,0.13862659]
[1641066291230,0.83433612,47332.0,47330.0,0.13862659]
[1641066291431,0.83433612,47332.0,47331.0,0.13862659]
[1641066291661,0.85463445,47332.0,47331.0,0.13862659]
[1641066291860,0.83626033,47332.0,47331.0,0.13862659]
[1641066292661,0.85786659,47332.0,47331.0,0.13862659]
[1641066292865,0.83756826,47332.0,47331.0,0.13862659]
[1641066293662,0.85585555,47332.0,47331.0,0.13862659]
[1641066293863,0.83424929,47332.0,47331.0,0.13862659]
[1641066294767,0.85305778,47332.0,47331.0,0.13862659]
[1641066294962,0.83477049,47332.0,47331.0,0.13862659]
[1641066295815,0.85497552,47332.0,47331.0,0.13862659]
[1641066296016,0.83616703,47332.0,47331.0,0.13862659]
[1641066296714,0.85453879,47332.0,47331.0,0.13862659]
[1641066296915,0.83433376,47332.0,47331.0,0.13862659]
[1641066297720,0.85247061,47332.0,47331.0,0.13862659]
[1641066297918,0.83409885,47332.0,47328.0,0.05282]
[1641066298117,0.052822,47331.0,47328.0,0.05282]
[1641066299156,0.052822,47331.0,47330.0,0.13862659]
[1641066299357,0.88855856,47332.0,47330.0,0.13862659]
[1641066299558,0.88855856,47332.0,47328.0,0.05282]
[1641066299760,0.052821,47331.0,47328.0,0.05282]
[1641066299960,0.052821,47331.0,47330.0,0.13862659]
[1641066300161,0.90825168,47332.0,47330.0,0.13862659]
[1641066300362,0.85543115,47332.0,47328.0,0.05282]
[1641066300761,0.87551516,47332.0,47328.0,0.05282]
[1641066301067,0.83604601,47332.0,47328.0,0.05282]
[1641066301560,0.052818,47331.0,47328.0,0.05282]
[1641066301761,0.052818,47331.0,47330.0,0.13862659]
[1641066303216,0.052818,47331.0,47330.0,0.81947988]
[1641066303613,0.052818,47331.0,47330.0,0.47826159]
[1641066309359,0.052818,47331.0,47330.0,0.50476696]
[1641066309561,0.052818,47331.0,47330.0,0.53127233]
[1641066326320,0.052818,47331.0,47330.0,0.19163733]
[1641066335118,0.28700506,47332.0,47330.0,0.05301074]
[1641066335319,1.459635,47331.0,47330.0,0.05301074]
[1641066335517,1.559635,47331.0,47330.0,0.02650537]
[1641066335718,1.559635,47331.0,47330.0,0.05301074]
[1641066335918,2.02791676,47331.0,47330.0,0.05301074]
[1641066336118,2.09615925,47331.0,47330.0,0.05301074]
[1641066336965,2.14898725,47331.0,47330.0,0.05301074]
[1641066337266,2.14968976,47331.0,47330.0,0.05301074]
[1641066337469,2.19968976,47331.0,47330.0,0.05301074]
[1641066338065,2.21806367,47331.0,47330.0,0.05301074]
[1641066338266,2.19631867,47331.0,47330.0,0.05301074]
[1641066339067,2.21533405,47331.0,47330.0,0.05301074]
[1641066339268,2.19696014,47331.0,47330.0,0.05301074]
[1641066340078,2.21510621,47331.0,47330.0,0.05301074]
[1641066340321,2.19520683,47331.0,47330.0,0.05301074]
[1641066340814,1.72818693,47331.0,47330.0,0.05301074]
[1641066341215,1.72976636,47331.0,47330.0,0.05301074]
[1641066341914,0.0528359,47328.0,47325.0,0.63391]
[1641066342117,0.439671,47327.0,47325.0,0.63391]
[1641066342315,0.489671,47327.0,47326.0,0.00010955]
[1641066342516,2.11784378,47327.0,47326.0,0.00010955]
[1641066343117,2.137207,47327.0,47326.0,0.00010955]
[1641066343917,2.190043,47327.0,47326.0,0.00010955]
[1641066344162,2.2112254,47327.0,47326.0,0.00010955]
[1641066344362,2.19186218,47327.0,47326.0,0.00010955]
[1641066345762,2.21236789,47327.0,47326.0,0.00010955]
[1641066345962,2.19118549,47327.0,47326.0,0.00010955]
[1641066346162,2.21028305,47327.0,47326.0,0.00010955]
[1641066346362,2.18977734,47327.0,47326.0,0.00010955]
[1641066346963,1.12,47326.0,47325.0,0.63367855]
[1641066347164,2.00401722,47326.0,47325.0,0.63367855]
[1641066347364,2.0568528,47326.0,47325.0,0.63367855]
[1641066348225,2.07516249,47326.0,47325.0,0.63367855]
[1641066348725,2.07506709,47326.0,47325.0,0.63367855]
[1641066348926,2.0567574,47326.0,47325.0,0.63367855]
[1641066349126,2.0763347,47326.0,47325.0,0.63367855]
[1641066350228,2.09782776,47326.0,47325.0,0.63367855]
[1641066350430,2.07825046,47326.0,47325.0,0.63367855]
[1641066350632,1.68106824,47326.0,47325.0,0.63367855]
[1641066351231,1.69945555,47326.0,47325.0,0.63367855]
[1641066351565,1.67796249,47326.0,47325.0,0.63367855]
[1641066352365,1.69858566,47326.0,47325.0,0.63367855]
[1641066353168,1.71897973,47326.0,47325.0,0.63367855]
[1641066353365,1.67996925,47326.0,47325.0,0.63367855]
[1641066354267,1.70007486,47326.0,47325.0,0.63367855]
[1641066354969,1.65957518,47326.0,47325.0,0.63367855]
[1641066355171,0.53957518,47326.0,47325.0,0.63367855]
[1641066355417,0.55876155,47326.0,47325.0,0.63367855]
[1641066356216,0.95941463,47326.0,47325.0,0.63367855]
[1641066356417,0.94022826,47326.0,47325.0,0.63367855]
[1641066356616,0.99022826,47326.0,47325.0,0.63367855]
[1641066357218,1.00842827,47326.0,47325.0,0.63367855]
[1641066357420,0.98777519,47326.0,47325.0,0.63367855]
[1641066358221,1.0097496,47326.0,47325.0,0.63367855]
[1641066358426,0.99154959,47326.0,47325.0,0.63367855]
[1641066359262,1.0114785,47326.0,47325.0,0.63367855]
[1641066360264,1.03334897,47326.0,47325.0,0.63367855]
[1641066360463,0.99144565,47326.0,47325.0,0.63367855]
[1641066360663,1.38306562,47326.0,47325.0,0.63367855]
[1641066361469,0.99144565,47326.0,47325.0,0.63367855]
[1641066361868,1.01154177,47326.0,47325.0,0.63367855]
[1641066362068,0.9896713,47326.0,47325.0,0.63367855]
[1641066362269,1.01010738,47326.0,47325.0,0.63367855]
[1641066362569,0.99001126,47326.0,47325.0,0.63367855]
[1641066363029,1.37743359,47326.0,47325.0,0.63367855]
[1641066363226,1.39705308,47326.0,47325.0,0.63367855]
[1641066363427,0.98919467,47326.0,47325.0,0.63367855]
[1641066364430,0.99031664,47326.0,47325.0,0.63367855]
[1641066364830,1.3799935,47326.0,47325.0,0.63367855]
[1641066365032,0.99031664,47326.0,47325.0,0.63367855]
[1641066365231,1.01170113,47326.0,47325.0,0.63367855]
[1641066365432,0.99095967,47326.0,47325.0,0.63367855]
[1641066366435,1.0115521,47326.0,47325.0,0.63367855]
[1641066366677,0.99016761,47326.0,47325.0,0.63367855]
[1641066367378,1.00943807,47326.0,47325.0,0.63367855]
[1641066367581,0.98884564,47326.0,47325.0,0.63367855]
[1641066367979,1.37916067,47326.0,47325.0,0.63367855]
[1641066368378,1.39908668,47326.0,47325.0,0.63367855]
[1641066368578,1.37981622,47326.0,47325.0,0.63367855]
[1641066369385,1.40122854,47326.0,47325.0,0.63367855]
[1641066369585,0.9909875,47326.0,47325.0,0.63367855]
[1641066370337,1.01245048,47326.0,47325.0,0.63367855]
[1641066370533,0.99103816,47326.0,47325.0,0.63367855]
[1641066371340,1.00908119,47326.0,47325.0,0.63367855]
[1641066371533,0.98761821,47326.0,47325.0,0.63367855]
[1641066372538,1.00617384,47326.0,47325.0,0.63367855]
[1641066372737,0.98813081,47326.0,47325.0,0.63367855]
[1641066373338,1.00997074,47326.0,47325.0,0.63367855]
[1641066373540,0.99141511,47326.0,47325.0,0.63367855]
[1641066373944,0.56141511,47326.0,47325.0,0.63367855]
[1641066374180,0.78141511,47326.0,47325.0,0.63367855]
[1641066374380,0.80253835,47326.0,47325.0,0.63367855]
[1641066374581,0.88069842,47326.0,47325.0,0.63367855]
[1641066375482,0.89965944,47326.0,47325.0,0.63367855]
[1641066375681,0.8785362,47326.0,47325.0,0.63367855]
[1641066377085,0.89954078,47326.0,47325.0,0.63367855]
[1641066377285,0.85957518,47326.0,47325.0,0.63367855]
[1641066377486,0.87968235,47326.0,47325.0,0.63367855]
[1641066378435,0.89970489,47326.0,47325.0,0.63367855]
[1641066378634,0.87959772,47326.0,47325.0,0.63367855]
[1641066379038,1.19959772,47326.0,47325.0,0.63367855]
[1641066379335,1.21934614,47326.0,47325.0,0.63367855]
[1641066380136,1.17957518,47326.0,47325.0,0.63367855]
[1641066380337,1.19758728,47326.0,47325.0,0.63367855]
[1641066381137,0.85957518,47326.0,47325.0,0.63367855]
[1641066381339,0.88155799,47326.0,47325.0,0.63367855]
[1641066381591,0.56155799,47326.0,47325.0,0.63367855]
[1641066381988,0.88155799,47326.0,47325.0,0.63367855]
[1641066382390,0.89990162,47326.0,47325.0,0.63367855]
[1641066382614,0.87791881,47326.0,47325.0,0.63367855]
[1641066383390,0.89798889,47326.0,47325.0,0.63367855]
[1641066383591,0.87964526,47326.0,47325.0,0.63367855]
[1641066384392,0.89884745,47326.0,47325.0,0.63367855]
[1641066384592,0.87877737,47326.0,47325.0,0.63367855]
[1641066385440,0.90009497,47326.0,47325.0,0.63367855]
[1641066385639,0.88089278,47326.0,47325.0,0.63367855]
[1641066385842,1.26089278,47326.0,47325.0,0.63367855]
[1641066386440,0.89892248,47326.0,47325.0,0.63367855]
[1641066386638,0.87760488,47326.0,47325.0,0.63367855]
[1641066387440,0.89617167,47326.0,47325.0,0.63367855]
[1641066387639,0.92814197,47326.0,47325.0,0.63367855]
[1641066389106,0.94982137,47326.0,47325.0,0.63367855]
[1641066389306,0.93125458,47326.0,47325.0,0.63367855]
[1641066389514,0.94957044,47326.0,47325.0,0.63367855]
[1641066390307,0.90957518,47326.0,47325.0,0.63367855]
[1641066390507,0.93121992,47326.0,47325.0,0.63367855]
[1641066390907,1.28121992,47326.0,47325.0,0.63367855]
[1641066391607,0.95160573,47326.0,47325.0,0.63367855]
[1641066391808,0.91996099,47326.0,47325.0,0.63367855]
[1641066392609,0.91862084,47326.0,47325.0,0.63367855]
[1641066393429,0.94008286,47326.0,47325.0,0.63367855]
[1641066393630,0.9210372,47326.0,47325.0,0.63367855]
[1641066394431,0.94214965,47326.0,47325.0,0.63367855]
[1641066394833,0.92068763,47326.0,47325.0,0.63367855]
[1641066395635,0.91833343,47326.0,47325.0,0.63367855]
[1641066396569,0.93788706,47326.0,47325.0,0.63367855]
[1641066396770,0.91912881,47326.0,47325.0,0.63367855]
[1641066397576,0.94078091,47326.0,47325.0,0.63367855]
[1641066397772,0.92122728,47326.0,47325.0,0.63367855]
[1641066398674,0.94257014,47326.0,47325.0,0.63367855]
[1641066398874,0.89257014,47326.0,47325.0,0.63367855]
[1641066399075,0.79257014,47326.0,47325.0,0.63367855]
[1641066399276,0.74957518,47326.0,47325.0,0.63367855]
[1641066399477,0.76783735,47326.0,47325.0,0.63367855]
[1641066399679,0.74820235,47326.0,47325.0,0.63367855]
[1641066399877,0.42820235,47326.0,47325.0,0.63367855]
[1641066400620,0.44659108,47326.0,47325.0,0.63367855]
[1641066401318,0.40994018,47326.0,47325.0,0.63367855]
[1641066401518,0.42958488,47326.0,47325.0,0.63367855]
[1641066401719,0.76921988,47326.0,47325.0,0.63367855]
[1641066402323,0.06238488,47326.0,47325.0,0.63367855]
[1641066402520,0.04029844,47326.0,47325.0,0.63367855]
[1641066402721,0.02065374,47326.0,47325.0,0.63367855]
[1641066403019,0.02065374,47326.0,47325.0,0.76788093]
[1641066403219,0.02065374,47326.0,47325.0,1.10751593]
[1641066403822,0.052836,47327.0,47325.0,1.10751593]
[1641066404088,0.052836,47327.0,47326.0,0.47826159]
[1641066404992,0.052836,47327.0,47326.0,0.13862659]
[1641066405789,0.052836,47327.0,47326.0,0.47826159]
[1641066410228,0.052836,47327.0,47326.0,0.82740578]
[1641066411984,0.052814,47330.0,47326.0,0.82740578]
[1641066412184,0.052814,47330.0,47329.0,0.47826159]
[1641066412383,0.16836545,47332.0,47329.0,1.40975057]
[1641066412384,9.129e-05,47331.0,47329.0,1.40975057]
[1641066412586,9.129e-05,47331.0,47330.0,1.49792211]
[1641066412784,0.16836545,47332.0,47330.0,1.49200211]
[1641066413083,0.14955929,47332.0,47331.0,0.49169007]
[1641066413283,0.14955929,47332.0,47331.0,1.46538507]
[1641066413483,0.14966884,47332.0,47331.0,1.46538507]
[1641066413682,0.71966884,47332.0,47331.0,1.46538507]
[1641066413883,0.71966884,47332.0,47331.0,1.12575007]
[1641066414283,0.71042955,47332.0,47331.0,1.12575007]
[1641066414485,0.71042955,47332.0,47331.0,0.77268659]
[1641066414683,0.71042955,47332.0,47331.0,1.11018446]
[1641066414684,0.73163322,47332.0,47331.0,1.11018446]
[1641066414883,0.73163322,47332.0,47331.0,1.11759107]
[1641066415082,0.73163322,47332.0,47331.0,1.11241007]
[1641066415335,0.73163322,47332.0,47331.0,1.11314105]
[1641066415722,0.74986995,47332.0,47331.0,1.11191106]
[1641066415921,0.72866628,47332.0,47331.0,1.11278174]
[1641066416121,0.72866628,47332.0,47331.0,1.11082401]
[1641066416322,0.72866628,47332.0,47331.0,0.77268659]
[1641066416722,0.74690299,47332.0,47331.0,0.77268659]
[1641066416923,0.72866626,47332.0,47331.0,0.77268659]
[1641066417122,0.72866626,47332.0,47331.0,1.11148014]
[1641066417926,0.72866626,47332.0,47331.0,0.77268659]
[1641066418322,0.74917309,47332.0,47331.0,0.77268659]
[1641066418523,0.73093638,47332.0,47331.0,0.77268659]
[1641066418723,0.75017826,47332.0,47331.0,0.77268659]
[1641066418925,0.72967143,47332.0,47331.0,0.77268659]
[1641066419782,0.75087215,47332.0,47331.0,0.77268659]
[1641066420083,0.73163027,47332.0,47331.0,0.77268659]
[1641066420885,0.7319683,47332.0,47331.0,0.77268659]
[1641066421883,0.73144651,47332.0,47331.0,0.77268659]
[1641066422483,1.14144651,47332.0,47331.0,0.77268659]
[1641066422928,1.14205902,47332.0,47331.0,0.77268659]
[1641066423327,0.73205902,47332.0,47331.0,0.77268659]
[1641066423727,0.75105218,47332.0,47331.0,0.77268659]
[1641066423928,0.72942271,47332.0,47331.0,0.77268659]
[1641066424529,0.72942271,47332.0,47331.0,0.77278659]